bitfinex-derivatives/quotes_ETHF0:USTF0_20250712
["timestamp","ask_amount","ask_price","bid_price","bid_amount"]
[1752351348405,3.62379707,2935.4,2935.3,29.31794713]
[1752351348905,2.5328,2935.4,2935.3,30.27284713]
[1752351350298,5.89174001,2935.4,2935.3,30.27284713]
[1752351351902,5.89174001,2935.4,2935.3,30.87474713]
[1752351355109,5.89174001,2935.4,2935.3,30.27284713]
[1752351356910,6.98273708,2935.4,2935.3,24.97003]
[1752351365311,1.9136,2935.3,2935.0,0.9549]
[1752351365515,6.83159707,2935.1,2935.0,1.6361]
[1752351365717,6.83159707,2935.1,2935.0,24.9381]
[1752351368618,6.83159707,2935.1,2935.0,25.5603]
[1752351369621,5.7406,2935.1,2935.0,25.5603]
[1752351370319,9.09954001,2935.1,2935.0,25.5603]
[1752351371318,9.09954001,2935.1,2935.0,30.86311713]
[1752351376112,10.19053708,2935.1,2935.0,30.86311713]
[1752351376818,10.19053708,2935.1,2935.0,30.18191713]
[1752351377017,10.19053708,2935.1,2935.0,30.86311713]
[1752351377823,10.19053708,2935.1,2934.7,0.9065]
[1752351377824,0.651,2934.8,2934.7,0.9065]
[1752351378021,3.60679707,2934.8,2934.7,24.86276]
[1752351379023,3.60679707,2934.8,2934.6,0.68127]
[1752351379225,2.5158,2934.7,2934.6,1.58777]
[1752351379423,2.5158,2934.7,2934.6,24.86877]
[1752351380224,5.87474001,2934.7,2934.6,24.86877]
[1752351380425,5.87474001,2934.7,2934.6,25.49097]
[1752351383634,5.87474001,2934.7,2934.6,24.8097]
[1752351384336,5.87474001,2934.7,2934.6,25.49099]
[1752351393436,5.87474001,2934.7,2934.6,26.17519]
[1752351393936,5.87474001,2934.7,2934.6,25.49099]
[1752351394339,5.87474001,2934.7,2934.6,26.17519]
[1752351396441,5.87474001,2934.7,2934.6,31.47800713]
[1752351397041,5.87474001,2934.7,2934.6,30.79380713]
[1752351401448,3.35894001,2934.7,2934.6,32.5698042]
[1752351401740,3.35894001,2934.7,2934.6,31.47880713]
[1752351401949,4.30284001,2934.7,2934.6,31.47880713]
[1752351402342,4.30284001,2934.7,2934.6,26.17599]
[1752351402543,4.30284001,2934.7,2934.6,31.47880713]
[1752351407041,3.35894001,2934.7,2934.6,31.47880713]
[1752351410348,4.30284001,2934.7,2934.6,31.47880713]
[1752351413250,4.95464001,2934.7,2934.6,31.47880713]
[1752351413647,5.91694001,2934.7,2934.6,31.47880713]
[1752351415649,5.91694001,2934.7,2934.6,6.89060713]
[1752351415854,5.91694001,2934.7,2934.6,29.23910713]
[1752351416057,5.91694001,2934.7,2934.6,0.68129]
[1752351416248,5.91694001,2934.7,2934.6,23.93629]
[1752351417248,5.91694001,2934.7,2934.6,0.68129]
[1752351417454,5.91694001,2934.7,2934.6,23.93629]
[1752351419055,9.12474001,2934.7,2934.6,23.93629]
[1752351419359,9.12474001,2934.7,2934.6,24.86419]
[1752351419657,9.12474001,2934.7,2934.6,30.79710713]
[1752351424859,9.12474001,2934.7,2934.6,25.49429]
[1752351425062,9.12474001,2934.7,2934.6,30.79710713]
[1752351430463,9.12474001,2934.7,2934.6,25.49429]
[1752351431567,9.12474001,2934.7,2934.6,30.79710713]
[1752351432564,5.91694001,2934.7,2934.6,30.79710713]
[1752351432869,9.12474001,2934.7,2934.6,30.79710713]
[1752351433669,5.91694001,2934.7,2934.6,30.79710713]
[1752351433869,9.12474001,2934.7,2934.6,30.79710713]
[1752351442380,9.12474001,2934.7,2934.6,25.49429]
[1752351442679,5.91694001,2934.7,2934.6,25.49659738]
[1752351443084,9.12474001,2934.7,2934.6,25.49659738]
[1752351443483,9.12474001,2934.7,2934.6,30.79941451]
[1752351444184,5.91694001,2934.7,2934.6,30.79941451]
[1752351444380,9.12474001,2934.7,2934.6,30.79941451]
[1752351444783,10.28483017,2934.7,2934.6,30.79941451]
[1752351447187,7.07703017,2934.7,2934.6,30.79941451]
[1752351447487,10.28483017,2934.7,2934.6,30.79941451]
[1752351448788,11.10415356,2934.7,2934.6,30.79941451]
[1752351450191,7.89635356,2934.7,2934.6,30.79941451]
[1752351450387,11.10415356,2934.7,2934.6,30.79941451]
[1752351451492,11.10415356,2934.7,2934.6,25.49659738]
[1752351451792,11.10415356,2934.7,2934.6,30.79941451]
[1752351452690,11.10391466,2934.7,2934.6,30.79941451]
[1752351454193,7.89611466,2934.7,2934.6,30.79941451]
[1752351454390,11.10391466,2934.7,2934.6,30.79941451]
[1752351455889,9.19771466,2934.7,2934.4,0.937]
[1752351456089,3.7038101,2934.6,2934.5,23.93129]
[1752351456289,3.7259101,2934.6,2934.5,0.68129]
[1752351457191,4.54523349,2934.6,2934.5,0.68129]
[1752351457387,5.22652349,2934.6,2934.5,0.68129]
[1752351457585,4.54523349,2934.6,2934.5,0.68129]
[1752351458590,0.68134,2934.4,2934.0,1.756136]
[1752351458790,6.86069135,2934.1,2934.0,26.455906]
[1752351459992,6.86069135,2934.1,2934.0,25.519306]
[1752351460191,10.90103136,2934.1,2934.0,0.052576]
[1752351461386,12.0586901,2934.1,2934.0,0.052576]
[1752351462288,0.9129,2932.9,2932.8,0.95828878]
[1752351462489,3.8583,2933.3,2933.2,0.68161]
[1752351462694,4.8548,2933.3,2933.2,8.45732713]
[1752351463387,0.6505,2933.3,2933.2,8.45732713]
[1752351463583,3.8583,2933.6,2933.5,3.15444]
[1752351463986,3.8583,2933.6,2933.5,8.45725713]
[1752351464993,4.8548,2933.6,2933.5,8.45725713]
[1752351465193,8.21374001,2933.6,2933.5,8.45725713]
[1752351466796,9.12664001,2933.6,2933.5,8.45725713]
[1752351466992,10.28058737,2933.6,2933.5,8.45725713]
[1752351467193,9.12664001,2933.6,2933.5,7.77571713]
[1752351467795,10.21963136,2933.6,2933.5,0.9024]
[1752351468497,10.90115136,2933.6,2933.5,1.839]
[1752351468697,10.90115136,2933.6,2933.5,0.9024]
[1752351469387,10.21963136,2933.6,2933.5,2.4729]
[1752351470698,7.21724001,2933.6,2933.5,7.77571713]
[1752351471291,7.21724001,2933.6,2933.5,8.45725713]
[1752351471899,0.6505,2933.4,2933.3,0.68158]
[1752351472199,0.6505,2933.4,2933.3,3.15448]
[1752351472200,1.647,2933.4,2933.3,3.15448]
[1752351472396,1.647,2933.4,2933.3,8.45729713]
[1752351475392,5.00594001,2933.4,2933.3,8.45729713]
[1752351477200,3.35894001,2933.4,2933.3,8.45729713]
[1752351479199,4.00944001,2933.4,2933.3,8.45729713]
[1752351479397,5.91884001,2933.4,2933.3,8.45729713]
[1752351479603,5.91884001,2933.4,2933.3,0.9024]
[1752351479898,0.9965,2933.3,2933.2,24.0796]
[1752351480203,7.01183136,2933.3,2933.2,1.584]
[1752351480703,2.5599,2933.2,2933.1,1.58404]
[1752351480903,2.5599,2933.2,2933.1,6.88685713]
[1752351481500,2.5599,2933.2,2933.1,1.58404]
[1752351481697,1.5634,2933.2,2933.1,0.68164]
[1752351481903,0.6505,2933.2,2933.1,0.68164]
[1752351482501,2.5599,2933.2,2933.1,0.68164]
[1752351483207,0.6505,2933.2,2933.0,0.68164]
[1752351483506,3.65289135,2933.1,2933.0,0.68164]
[1752351484504,3.65289135,2933.1,2932.9,0.68167]
[1752351484505,4.33454135,2933.1,2932.9,0.68167]
[1752351484701,6.86069135,2933.0,2932.9,5.98448713]
[1752351485007,6.86069135,2933.0,2932.9,1.58407]
[1752351485310,3.24158,2932.9,2932.8,0.05588878]
[1752351486109,2.5599,2932.9,2932.8,0.73759878]
[1752351487208,3.24158,2932.9,2932.8,0.05588878]
[1752351487808,2.5599,2932.9,2932.8,0.05588878]
[1752351488108,3.24158,2932.9,2932.8,1.03008878]
[1752351489113,3.24158,2932.9,2932.8,1.71179878]
[1752351489311,2.5599,2932.9,2932.8,3.33389878]
[1752351489611,3.65289135,2932.9,2932.8,3.33389878]
[1752351490311,7.01183136,2932.9,2932.8,3.33389878]
[1752351490612,4.87964001,2932.9,2932.8,8.63671591]
[1752351491607,3.97594001,2932.9,2932.8,8.63671591]
[1752351493513,4.87964001,2932.9,2932.8,8.63671591]
[1752351496617,4.87964001,2932.9,2932.8,3.33389878]
[1752351496816,4.87964001,2932.9,2932.8,8.63671591]
[1752351497913,3.35894001,2932.9,2932.8,8.63671591]
[1752351504422,4.87964001,2932.9,2932.8,8.63671591]
[1752351511427,5.81924001,2932.9,2932.8,8.63671591]
[1752351514535,5.81924001,2932.9,2932.8,3.33389878]
[1752351514725,5.81924001,2932.9,2932.8,8.63671591]
[1752351517034,4.87964001,2932.9,2932.8,8.63671591]
[1752351521432,3.97594001,2932.9,2932.8,8.63671591]
[1752351521736,3.35894001,2932.9,2932.8,8.63671591]
[1752351524238,3.35894001,2932.9,2932.8,9.72970726]
[1752351524437,3.35894001,2932.9,2932.8,8.63671591]
[1752351528839,3.24803536,2932.9,2932.8,9.72970726]
[1752351531537,3.24803536,2932.9,2932.8,8.63671591]
[1752351531738,3.24803536,2932.9,2932.8,9.72970726]
[1752351532137,3.24803536,2932.9,2932.8,8.63671591]
[1752351542857,5.75463536,2932.9,2932.8,31.91671591]
[1752351548453,5.75463536,2932.9,2932.8,0.73758878]
[1752351548655,5.75463536,2932.9,2932.8,0.05588878]
[1752351549057,5.75463536,2932.9,2932.7,23.28]
[1752351549058,6.90426811,2932.9,2932.7,0.68172]
[1752351549253,4.8488241,2932.8,2932.7,0.68172]
[1752351549460,3.69919135,2932.8,2932.7,0.68172]
[1752351550364,6.94722671,2932.8,2932.7,0.68172]
[1752351555666,5.85423536,2932.8,2932.7,1.68172]
[1752351557069,6.94722671,2932.8,2932.7,1.68172]
[1752351558271,6.94722671,2932.8,2932.7,0.68172]
[1752351559268,6.94722671,2932.8,2932.5,1.9574]
[1752351559564,0.6661,2931.7,2931.6,0.68198]
[1752351559762,9.34102671,2932.8,2931.7,1.28846]
[1752351559763,4.1862,2931.8,2931.7,1.28846]
[1752351559967,3.2078,2931.8,2931.7,9.64166848]
[1752351560165,6.45583536,2931.8,2931.7,9.64166848]
[1752351560666,6.45583536,2931.8,2931.7,32.95666848]
[1752351561270,8.10033536,2931.8,2931.7,8.54867713]
[1752351562967,8.10033536,2931.8,2931.7,31.90267713]
[1752351565173,9.06203536,2931.8,2931.7,26.59986]
[1752351566478,9.06203536,2931.8,2931.7,24.354]
[1752351566775,9.06203536,2931.8,2931.7,24.03596]
[1752351566971,9.06203536,2931.8,2931.7,25.03596]
[1752351567675,9.06203536,2931.8,2931.7,26.59986]
[1752351567877,8.10033536,2931.8,2931.7,26.59986]
[1752351568572,8.10033536,2931.8,2931.7,31.90267713]
[1752351570675,8.10033536,2931.8,2931.7,31.89067713]
[1752351572779,9.06103536,2931.8,2931.7,31.89067713]
[1752351573780,9.06103536,2931.8,2931.7,31.88267713]
[1752351574477,8.10033536,2931.8,2931.7,31.88267713]
[1752351577987,6.45583536,2931.8,2931.7,32.97566848]
[1752351579285,3.24803536,2931.8,2931.7,32.97566848]
[1752351581088,3.24803536,2931.8,2931.7,36.18346848]
[1752351581387,3.24803536,2931.8,2931.7,35.09047713]
[1752351582184,3.24803536,2931.8,2931.7,31.88267713]
[1752351585787,3.24803536,2931.8,2931.7,8.54867713]
[1752351585991,3.24803536,2931.8,2931.7,31.85867713]
[1752351587187,3.24803536,2931.8,2931.7,31.85267713]
[1752351589991,3.24803536,2931.8,2931.7,8.54867713]
[1752351590191,3.24803536,2931.8,2931.7,31.84867713]
[1752351590492,4.85193536,2931.8,2931.7,8.54867713]
[1752351590693,4.85193536,2931.8,2931.7,32.93866848]
[1752351591895,5.76143536,2931.8,2931.7,32.93766848]
[1752351592894,4.85193536,2931.8,2931.7,32.93766848]
[1752351594801,5.75920141,2931.8,2931.7,1.68196]
[1752351595090,5.75920141,2931.8,2931.7,24.98096]
[1752351595696,5.75920141,2931.8,2931.7,26.51466]
[1752351600101,5.75920141,2931.8,2931.7,24.97496]
[1752351600501,5.75920141,2931.8,2931.7,26.50866]
[1752351601296,4.84970141,2931.8,2931.7,26.50866]
[1752351601895,5.75920141,2931.8,2931.7,27.60165135]
[1752351605810,4.84970141,2931.8,2931.7,27.60165135]
[1752351607712,5.79890141,2931.8,2931.7,27.60165135]
[1752351609513,5.79890141,2931.8,2931.7,32.90446848]
[1752351609514,3.24580141,2931.8,2931.7,32.90446848]
[1752351610412,3.90880141,2931.8,2931.7,32.90446848]
[1752351611511,3.24580141,2931.8,2931.7,32.90446848]
[1752351613017,3.24580141,2931.8,2931.7,31.81147713]
[1752351613315,3.24580141,2931.8,2931.7,32.90446848]
[1752351614918,3.24580141,2931.8,2931.7,8.51847713]
[1752351614919,4.89280141,2931.8,2931.7,8.51847713]
[1752351615123,5.84200141,2931.8,2931.7,26.50866]
[1752351620119,5.84200141,2931.8,2931.7,26.50766]
[1752351620423,5.84200141,2931.8,2931.7,31.81047713]
[1752351620717,5.84200141,2931.8,2931.5,0.682]
[1752351620718,1.9332,2931.7,2931.5,0.682]
[1752351620910,3.8708,2931.6,2931.5,0.682]
[1752351621115,5.804,2931.6,2931.5,23.974]
[1752351622218,5.804,2931.6,2931.5,24.9004]
[1752351623024,5.804,2931.6,2931.5,25.8423]
[1752351625426,9.04980141,2931.6,2931.5,24.9004]
[1752351625621,9.04980141,2931.6,2931.5,1.6084]
[1752351625820,9.04980141,2931.6,2931.5,24.9014]
[1752351628129,9.73179141,2931.6,2931.5,24.9014]
[1752351628421,2.5962,2931.3,2931.2,3.16718]
[1752351628620,3.8708,2931.3,2929.7,52.52612]
[1752351628819,4.8548,2931.0,2930.9,3.16725]
[1752351629020,3.2078,2931.0,2930.9,27.58924135]
[1752351629217,3.8708,2931.3,2931.2,0.6168]
[1752351629431,5.804,2931.3,2931.2,2.55038]
[1752351630328,1.647,2931.1,2931.0,2.55041]
[1752351630524,2.5962,2931.1,2931.0,2.55041]
[1752351631331,3.2783,2931.1,2930.9,24.42599135]
[1752351631536,5.804,2931.0,2930.9,2.55045]
[1752351631833,5.804,2931.0,2930.9,3.16725]
[1752351632325,4.8548,2931.0,2930.9,4.26024135]
[1752351632631,3.8708,2931.0,2930.9,4.26024135]
[1752351633225,4.8548,2931.0,2930.9,4.26024135]
[1752351633833,4.8548,2931.0,2930.9,3.16725]
[1752351634026,5.804,2931.0,2930.9,3.16725]
[1752351634229,5.804,2931.0,2930.9,2.4851]
[1752351634525,3.27835,2930.9,2930.8,1.8683]
[1752351634728,2.5962,2930.9,2930.8,2.55047]
[1752351634929,2.5962,2930.9,2930.8,8.47008713]
[1752351635130,2.5962,2930.9,2930.8,3.16727]
[1752351635333,5.84200141,2930.9,2930.8,3.16727]
[1752351636129,6.52415141,2930.9,2930.8,2.4851]
[1752351636636,5.84200141,2930.9,2930.8,3.16727]
[1752351637025,6.52415141,2930.9,2930.8,0.9264]
[1752351637223,0.6483,2930.6,2930.5,0.9251]
[1752351637527,0.6483,2930.6,2930.2,25.04076]
[1752351637528,2.5535,2930.4,2930.3,2.59519]
[1752351637727,2.5535,2930.4,2930.3,7.89800713]
[1752351637933,2.5535,2930.4,2930.3,8.56090713]
[1752351638136,2.5535,2930.4,2930.3,5.30281713]
[1752351638331,0.9229,2929.9,2929.8,0.68241]
[1752351638639,3.2078,2929.9,2929.8,9.65401848]
[1752351639339,3.8561,2929.9,2929.8,9.65401848]
[1752351640135,6.45360141,2929.9,2929.8,9.65401848]
[1752351640525,3.24580141,2929.9,2929.8,9.65401848]
[1752351642630,3.24580141,2929.9,2929.8,8.56102713]
[1752351642838,3.24580141,2929.9,2929.8,9.65401848]
[1752351647042,3.24580141,2929.9,2929.8,4.35120135]
[1752351647241,3.24580141,2929.9,2929.8,9.65401848]
[1752351650642,3.89410141,2929.9,2929.8,9.65401848]
[1752351652941,3.24580141,2929.9,2929.8,9.65401848]
[1752351655135,3.24580141,2929.9,2929.8,12.86181848]
[1752351655543,3.24580141,2929.9,2929.8,9.65401848]
[1752351663348,3.24580141,2929.9,2929.8,4.35120135]
[1752351664351,3.24580141,2929.9,2929.8,9.65401848]
[1752351667551,2.45478141,2929.9,2929.8,9.65401848]
[1752351667759,0.9921,2930.9,2930.8,0.68217]
[1752351667953,2.758294,2930.9,2930.8,3.17707]
[1752351668149,1.145994,2930.9,2930.8,3.66578713]
[1752351668353,0.6202,2931.1,2931.0,1.33743]
[1752351668556,1.75977001,2931.1,2931.0,27.68902135]
[1752351668754,1.13960346,2931.1,2931.0,28.17773848]
[1752351669356,2.75190346,2931.1,2931.0,2.52173]
[1752351669556,0.6202,2931.0,2930.6,26.6428]
[1752351669750,2.1782,2930.7,2930.6,28.24112]
[1752351669951,2.75190346,2930.7,2930.6,29.81992]
[1752351670157,2.75190346,2930.7,2930.6,30.30863713]
[1752351670461,1.75980346,2930.7,2930.6,30.30863713]
[1752351671058,0.6202,2930.7,2930.6,30.30863713]
[1752351674864,0.6202,2930.7,2930.6,27.10083713]
[1752351675166,9.11350001,2930.7,2930.6,27.10083713]
[1752351677168,8.49330001,2930.7,2930.6,27.10083713]
[1752351677568,9.11350001,2930.7,2930.6,30.30863713]
[1752351679772,10.10560001,2930.7,2930.6,6.87363713]
[1752351680071,9.11350001,2930.7,2930.6,30.28863713]
[1752351683675,9.11350001,2930.7,2930.6,27.08083713]
[1752351684276,9.11350001,2930.7,2930.6,30.28863713]
[1752351685678,9.11350001,2930.7,2930.6,29.79992]
[1752351685879,9.11350001,2930.7,2930.6,30.28863713]
[1752351686781,9.11350001,2930.7,2930.6,27.08083713]
[1752351686974,9.11350001,2930.7,2930.6,30.28863713]
[1752351687679,9.11350001,2930.7,2930.6,27.08083713]
[1752351687880,9.11350001,2930.7,2930.6,30.28863713]
[1752351688581,10.67150001,2930.7,2930.6,30.27563713]
[1752351689684,10.10560001,2930.7,2930.6,30.27563713]
[1752351690185,10.67150001,2930.7,2930.6,29.78192]
[1752351690484,10.10560001,2930.7,2930.6,29.78192]
[1752351696492,10.10560001,2930.7,2930.6,30.27063713]
[1752351698783,9.11350001,2930.7,2930.6,30.27063713]
[1752351699790,9.11350001,2930.7,2930.6,27.06283713]
[1752351700186,9.11350001,2930.7,2930.6,30.27063713]
[1752351701390,10.03160001,2930.7,2930.6,30.27063713]
[1752351702690,10.03160001,2930.7,2930.6,29.78192]
[1752351702884,10.03160001,2930.7,2930.6,30.27063713]
[1752351703291,9.11350001,2930.7,2930.6,31.36362848]
[1752351705793,9.11350001,2930.7,2930.6,28.15582848]
[1752351708194,9.11350001,2930.7,2930.6,27.06283713]
[1752351711195,9.11350001,2930.7,2930.6,26.57412]
[1752351711492,9.11350001,2930.7,2930.6,27.06283713]
[1752351711993,9.11350001,2930.7,2930.6,30.27063713]
[1752351712195,8.49330001,2930.7,2930.6,30.27063713]
[1752351715600,9.10630001,2930.7,2930.6,30.27063713]
[1752351715998,9.10630001,2930.7,2930.6,27.06283713]
[1752351716299,9.10630001,2930.7,2930.6,30.27063713]
[1752351716599,8.49330001,2930.7,2930.6,30.27063713]
[1752351718701,8.49330001,2930.7,2930.6,29.78192]
[1752351718901,8.49330001,2930.7,2930.6,27.06283713]
[1752351719099,8.49330001,2930.7,2930.6,30.27063713]
[1752351720602,9.10630001,2930.7,2930.6,30.27063713]
[1752351722303,10.02440001,2930.7,2930.6,30.27063713]
[1752351722496,10.02440001,2930.7,2930.6,27.06283713]
[1752351723705,10.58860001,2930.7,2930.6,27.06283713]
[1752351724306,10.02440001,2930.7,2930.6,27.06283713]
[1752351724501,10.58860001,2930.7,2930.6,3.66583713]
[1752351724700,10.58860001,2930.7,2930.6,26.99583713]
[1752351726606,10.02440001,2930.7,2930.6,26.99583713]
[1752351729008,10.02440001,2930.7,2930.6,3.17712]
[1752351729204,10.58980001,2930.7,2930.6,25.84982]
[1752351730206,10.58980001,2930.7,2930.6,26.45212]
[1752351730506,10.58980001,2930.7,2930.6,3.12412]
[1752351730706,10.58980001,2930.7,2930.6,26.45212]
[1752351731110,10.02440001,2930.7,2930.6,26.45212]
[1752351732810,9.10630001,2930.7,2930.6,26.45212]
[1752351733307,9.10630001,2930.7,2930.6,26.94083713]
[1752351736606,8.49330001,2930.7,2930.6,26.45212]
[1752351736811,8.49330001,2930.7,2930.6,26.94083713]
[1752351747419,8.49330001,2930.7,2930.6,26.45212]
[1752351747620,7.69032001,2930.7,2930.6,26.45212]
[1752351748320,7.69032001,2930.7,2930.6,26.94083713]
[1752351750721,6.95627001,2930.7,2930.6,26.94083713]
[1752351750922,6.23478001,2930.7,2930.6,26.94083713]
[1752351757329,4.29758001,2930.7,2930.6,31.94083713]
[1752351757629,2.26225001,2930.7,2930.6,31.94083713]
[1752351758127,1.21422001,2930.7,2930.6,31.94083713]
[1752351758322,0.21929001,2930.7,2930.6,31.94083713]
[1752351758526,1e-08,2930.7,2930.6,26.94083713]
[1752351764830,1e-08,2930.7,2930.6,27.7619053]
[1752351768736,1e-08,2930.7,2930.6,32.7619053]
[1752351772040,1e-08,2930.7,2930.6,32.27318817]
[1752351772241,1e-08,2930.7,2930.6,32.7619053]
[1752351773333,1e-08,2930.7,2930.6,27.7619053]
[1752351777739,1e-05,2931.8,2931.7,3.19866]
[1752351777940,4.42366371,2932.7,2931.9,0.6139]
[1752351778145,1.21586371,2932.7,2932.6,1.50281817]
[1752351778648,6.21586371,2932.7,2932.6,1.50281817]
[1752351778943,6.13692882,2932.7,2932.6,0.68175]
[1752351779544,6.13692882,2932.7,2932.6,1.02236492]
[1752351780146,6.44632882,2932.7,2932.6,1.02236492]
[1752351780349,5.3094,2932.7,2932.6,1.02236492]
[1752351780948,13.80270001,2932.7,2932.6,2.92516492]
[1752351781447,8.80270001,2932.7,2932.6,2.92516492]
[1752351782547,8.80270001,2932.7,2932.6,3.53906492]
[1752351783445,8.49330001,2932.7,2932.6,3.53906492]
[1752351784345,8.49330001,2932.7,2932.6,4.02778205]
[1752351784846,8.49330001,2932.7,2932.6,7.23558205]
[1752351786645,8.49330001,2932.7,2932.6,0.34061492]
[1752351786646,13.80220001,2932.7,2932.6,0.34061492]
[1752351786849,13.80220001,2932.7,2932.2,5.1205]
[1752351786850,0.3089,2932.6,2932.5,0.68178]
[1752351787345,5.3089,2932.6,2932.5,47.29478]
[1752351787550,0.3089,2932.6,2932.5,47.29478]
[1752351788251,0.3089,2932.6,2932.5,49.54361072]
[1752351788450,8.49330001,2932.7,2932.6,3.22865]
[1752351788645,8.49330001,2932.7,2932.6,8.01903297]
[1752351788842,8.49330001,2932.7,2932.6,7.53031584]
[1752351789251,8.49330001,2932.7,2932.6,8.01903297]
[1752351790146,8.49330001,2932.7,2932.6,4.81123297]
[1752351790450,8.49330001,2932.7,2932.6,8.01903297]
[1752351790841,3.2078,2933.5,2932.6,8.01903297]
[1752351790842,0.3089,2933.4,2933.0,2.5469]
[1752351791042,0.3089,2933.4,2933.3,2.73205584]
[1752351791254,0.3089,2933.4,2933.3,48.38645584]
[1752351792354,0.3089,2933.4,2933.3,50.29915584]
[1752351793347,3.2078,2933.8,2933.3,50.29915584]
[1752351793348,3.5167,2933.8,2933.7,0.6815]
[1752351793552,3.5167,2933.8,2933.7,48.38236584]
[1752351794851,3.5167,2933.8,2933.7,50.29506584]
[1752351795052,3.5167,2933.8,2933.7,49.33896584]
[1752351795252,3.5167,2933.8,2933.7,50.29506584]
[1752351795458,12.01000001,2933.8,2933.7,50.29506584]
[1752351796654,8.49330001,2933.8,2933.7,50.29506584]
[1752351796956,8.49330001,2933.8,2933.7,50.78378297]
[1752351797950,0.3089,2934.5,2934.4,0.68134]
[1752351798149,0.3089,2934.5,2934.4,49.33280584]
[1752351798947,3.2078,2934.8,2934.4,50.28890584]
[1752351799153,3.5167,2934.8,2934.7,2.73173584]
[1752351799350,3.5167,2934.8,2934.7,49.32773584]
[1752351800457,4.19794,2934.8,2934.7,46.596]
[1752351800954,0.99018,2934.7,2934.6,46.589]
[1752351801354,5.99018,2934.7,2934.6,46.589]
[1752351801554,5.3089,2934.7,2934.6,47.27029]
[1752351802260,5.99017,2934.7,2934.6,47.27029]
[1752351803252,5.3089,2934.7,2934.6,47.27029]
[1752351804361,0.3089,2934.7,2934.6,47.27029]
[1752351804560,5.3089,2934.7,2934.6,47.27029]
[1752351805362,5.3089,2934.7,2934.6,46.589]
[1752351806264,5.99017,2934.7,2934.6,46.589]
[1752351807463,7.08403584,2934.7,2934.6,46.589]
[1752351807664,8.20416093,2934.7,2934.6,46.589]
[1752351807864,0.3089,2934.3,2934.2,1.63797]
[1752351808065,0.3089,2934.3,2934.2,47.26337]
[1752351808566,0.3089,2934.3,2934.2,48.21997]
[1752351808764,0.99026,2934.3,2934.2,47.5386]
[1752351810157,0.99026,2934.3,2934.2,46.582]
[1752351814366,4.19806,2934.3,2934.2,46.582]
[1752351814669,4.19806,2934.3,2934.2,47.26338]
[1752351814870,4.19806,2934.3,2934.2,48.21998]
[1752351815070,4.19806,2934.3,2934.2,47.5386]
[1752351815470,4.19806,2934.3,2934.2,48.4947]
[1752351817275,4.19806,2934.3,2934.2,49.58856584]
[1752351818176,5.3211718,2934.3,2934.2,49.58856584]
[1752351818774,2.1133718,2934.3,2934.2,49.58856584]
[1752351820071,1.4320118,2934.3,2934.2,49.58856584]
[1752351820271,1.1231118,2934.3,2934.2,49.58856584]
[1752351820577,1.8044718,2934.3,2934.2,49.58856584]
[1752351822080,1.1231118,2934.3,2934.2,50.26994584]
[1752351826686,1.1231118,2934.3,2934.2,50.75866297]
[1752351827384,4.42366371,2934.8,2934.7,1.31787]
[1752351827579,4.33542802,2934.8,2934.7,50.82763584]
[1752351829080,4.33542802,2934.8,2934.7,51.31635297]
[1752351832389,3.2078,2935.1,2935.0,0.6812]
[1752351832584,4.33435945,2935.1,2935.0,50.14036584]
[1752351832785,4.33435945,2935.1,2935.0,51.31028297]
[1752351832984,3.2078,2935.4,2935.3,1.31773]
[1752351833177,3.2078,2935.4,2935.3,27.58849584]
[1752351833981,3.2078,2935.4,2935.3,28.07721297]
[1752351834185,3.2078,2935.8,2935.7,1.5602]
[1752351834487,4.32986995,2935.8,2935.7,26.48953]
[1752351834690,3.2078,2935.8,2935.7,25.8085]
[1752351836387,3.2078,2935.8,2935.7,26.48953]
[1752351838686,0.304,2936.0,2935.8,1.3176]
[1752351838891,3.2078,2936.1,2936.0,3.15846]
[1752351839088,3.5118,2936.1,2936.0,3.15846]
[1752351841193,3.5118,2936.1,2936.0,2.52186]
[1752351843097,3.5118,2936.1,2936.0,1.8409]
[1752351843999,4.19274,2936.1,2936.0,1.8409]
[1752351844202,3.5118,2936.1,2936.0,1.8409]
[1752351844695,0.98494,2936.1,2936.0,1.8409]
[1752351846302,0.98494,2936.1,2935.5,4.91048]
[1752351846303,0.68106,2935.6,2935.5,0.9952]
[1752351846601,0.9886,2935.4,2935.3,1.9806]
[1752351847301,5.29026584,2935.4,2935.3,0.9854]
[1752351847605,5.29026584,2935.4,2935.3,1.9806]
[1752351848997,4.1964,2935.4,2935.3,1.9806]
[1752351851807,0.68108,2935.5,2935.4,1.9806]
[1752351852009,0.68108,2935.5,2935.4,3.11511713]
[1752351853108,0.68108,2935.5,2935.4,3.79621713]
[1752351854309,0.68108,2935.5,2935.4,3.11511713]
[1752351855209,0.68108,2935.5,2935.4,3.79621713]
[1752351855611,3.2078,2935.7,2935.6,0.6458]
[1752351855809,3.88885,2935.7,2935.6,2.6264]
[1752351857711,3.88883,2935.7,2935.6,3.30746]
[1752351858808,3.88883,2935.7,2935.6,2.6264]
[1752351859109,3.88883,2935.7,2935.6,3.30746]
[1752351859314,0.68103,2935.7,2935.6,3.30746]
[1752351859808,0.68103,2935.7,2935.6,2.6264]
[1752351860313,0.68103,2935.7,2935.6,3.30746]
[1752351861108,0.68103,2935.8,2935.6,3.30746]
[1752351861413,0.68103,2935.8,2935.7,2.6264]
[1752351861614,1.80261437,2935.8,2935.7,2.6264]
[1752351862015,2.11011437,2935.8,2935.7,2.6264]
[1752351862508,2.11011437,2935.8,2935.7,3.30743]
[1752351862705,1.12158437,2935.8,2935.7,4.89001297]
[1752351862906,3.2078,2936.0,2935.9,0.68099]
[1752351863115,6.41220489,2936.0,2935.9,2.6264]
[1752351863313,6.41220489,2936.0,2935.5,46.558]
[1752351863314,0.68101,2935.8,2935.7,0.9952]
[1752351863616,2.11056905,2935.8,2935.7,1.9806]
[1752351863815,0.98851,2935.8,2935.7,1.9806]
[1752351864016,0.98851,2935.8,2935.7,2.66163]
[1752351864610,2.11051891,2935.8,2935.7,2.66163]
[1752351865117,0.98851,2935.8,2935.7,2.66163]
[1752351865615,2.11049407,2935.8,2935.7,2.66163]
[1752351866019,2.11049407,2935.8,2935.7,3.30743]
[1752351866320,2.11049407,2935.8,2935.7,2.6264]
[1752351866819,2.11049407,2935.8,2935.7,3.30743]
[1752351867422,2.11049407,2935.8,2935.7,2.6264]
[1752351867621,2.11049407,2935.8,2935.7,3.30743]
[1752351867920,1.80299407,2935.8,2935.7,3.30743]
[1752351869718,1.80299407,2935.8,2935.7,2.6264]
[1752351872323,1.80299407,2935.8,2935.7,3.30743]